fUST/lending_fUST_20240818
["ID","MTS","AMOUNT","RATE_DAILY","PERIOD"]
[335208774,1723979459173,-500.0,0.0001726,2]
[335208775,1723979459183,-500.0,0.0001726,2]
[335208776,1723979459192,-790.36,0.0001726,2]
[335208777,1723979459202,-500.0,0.0001726,2]
[335208778,1723979459211,-500.0,0.0001726,2]
[335208779,1723979459220,-500.0,0.0001726,2]
[335208780,1723979459230,-249.044177,0.0001726,2]
[335208781,1723979459239,-571.35,0.0001726,2]
[335208782,1723979459249,-500.0,0.0001726,2]
[335208783,1723979459259,-511.71388693,0.0001726,2]
[335208784,1723979459269,-500.0,0.0001726,2]
[335208785,1723979459278,-500.0,0.0001726,2]
[335208786,1723979459288,-500.0,0.0001726,2]
[335208787,1723979459297,-500.0,0.0001726,2]
[335208788,1723979459307,-500.0,0.0001726,2]
[335208789,1723979459316,-733.98,0.0001726,2]
[335208790,1723979459326,-500.0,0.0001726,2]
[335208791,1723979459335,-500.0,0.0001726,2]
[335208792,1723979459345,-500.0,0.0001726,2]
[335208793,1723979459354,-500.0,0.0001726,2]
[335208794,1723979459363,-529.81,0.0001726,2]
[335208795,1723979459373,-151.0,0.0001726,2]
[335208796,1723979459383,-500.0,0.0001726,2]
[335208797,1723979459392,-151.0,0.0001726,2]
[335208798,1723979459401,-500.0,0.0001726,2]
[335208799,1723979459411,-500.0,0.0001726,2]
[335208800,1723979459420,-719.11,0.0001726,2]
[335208801,1723979459429,-275.21596254,0.0001726,2]
[335208802,1723979459439,-500.0,0.0001726,2]
[335208803,1723979459449,-500.0,0.0001726,2]
[335208804,1723979459536,-500.0,0.0001726,2]
[335208805,1723979459546,-662.22,0.0001726,2]
[335208806,1723979459555,-500.0,0.0001726,2]
[335208807,1723979459565,-500.0,0.0001726,2]
[335208808,1723979459576,-538.36,0.0001726,2]
[335208809,1723979459586,-994.27,0.0001726,2]
[335208810,1723979459595,-1007.76,0.0001726,2]
[335208811,1723979459605,-500.0,0.0001726,2]
[335208812,1723979459614,-505.77653679,0.0001726,2]
[335208813,1723979459624,-500.0,0.0001726,2]
[335208814,1723979459633,-666.68,0.0001726,2]
[335208815,1723979459642,-513.97,0.0001726,2]
[335208816,1723979459652,-500.0,0.0001726,2]
[335208817,1723979459662,-667.83,0.0001726,2]
[335208818,1723979459671,-500.0,0.0001726,2]
[335208819,1723979459680,-500.0,0.0001726,2]
[335208820,1723979459690,-500.0,0.0001726,2]
[335208821,1723979459699,-500.0,0.0001726,2]
[335208822,1723979459709,-500.0,0.0001726,2]
[335208823,1723979459718,-515.51,0.0001726,2]
[335208824,1723979459728,-500.0,0.0001726,2]
[335208825,1723979459738,-500.0,0.0001726,2]
[335208826,1723979459747,-500.0,0.0001726,2]
[335208827,1723979459756,-500.0,0.0001726,2]
[335208828,1723979459767,-500.0,0.0001726,2]
[335208829,1723979459776,-500.0,0.0001726,2]
[335208830,1723979459786,-500.0,0.0001726,2]
[335208831,1723979459797,-500.0,0.0001726,2]
[335208832,1723979459807,-699.21,0.0001726,2]
[335208833,1723979459817,-500.0,0.0001726,2]
[335208834,1723979459827,-500.0,0.0001726,2]
[335208835,1723979459837,-500.0,0.0001726,2]
[335208836,1723979459847,-500.0,0.0001726,2]
[335208837,1723979459856,-835.69,0.0001726,2]
[335208838,1723979459866,-155.97998199,0.0001726,2]
[335208839,1723979459875,-681.64,0.0001726,2]
[335208840,1723979459884,-500.0,0.0001726,2]
[335208841,1723979459894,-667.86,0.0001726,2]
[335208842,1723979459903,-500.0,0.0001726,2]
[335208843,1723979459913,-500.0,0.0001726,2]
[335208844,1723979459922,-2005.0,0.0001726,10]
[335208845,1723979459931,-568.14802954,0.0001726,2]
[335208846,1723979459941,-500.0,0.0001726,2]
[335208847,1723979459950,-500.0,0.0001726,2]
[335208848,1723979459959,-500.0,0.0001726,2]
[335208849,1723979459969,-200.0,0.0001726,2]
[335208850,1723979459978,-500.0,0.0001726,2]
[335208851,1723979459987,-500.0,0.0001726,2]
[335208852,1723979459996,-500.0,0.0001726,2]
[335208853,1723979460006,-500.0,0.0001726,2]
[335208854,1723979460016,-500.0,0.0001726,2]
[335208855,1723979460025,-697.49,0.0001726,2]
[335208856,1723979460035,-500.0,0.0001726,2]
[335208857,1723979460045,-720.31,0.0001726,2]
[335208858,1723979460055,-570.82,0.0001726,2]
[335208859,1723979460064,-500.0,0.0001726,2]
[335208860,1723979460074,-500.0,0.0001726,2]
[335208861,1723979460084,-500.0,0.0001726,2]
[335208862,1723979460094,-756.2,0.0001726,2]
[335208863,1723979460103,-500.0,0.0001726,2]
[335208864,1723979460113,-1189.78,0.0001726,2]
[335208865,1723979460135,-500.0,0.0001726,2]
[335208866,1723979460152,-500.0,0.0001726,2]
[335208867,1723979460174,-1408.37,0.0001726,2]
[335208868,1723979460194,-500.0,0.0001726,2]
[335208869,1723979460215,-500.0,0.0001726,2]
[335208870,1723979460234,-620.88,0.0001726,2]
[335208871,1723979460252,-500.0,0.0001726,2]
[335208872,1723979460268,-500.0,0.0001726,2]
[335208873,1723979460287,-500.0,0.0001726,2]
[335208874,1723979460307,-168.93144031,0.0001726,2]
[335208875,1723979460321,-500.0,0.0001726,2]
[335208876,1723979460336,-500.0,0.0001726,2]
[335208877,1723979460353,-526.73,0.0001726,2]
[335208878,1723979460372,-500.0,0.0001726,2]
[335208879,1723979460386,-704.33,0.0001726,2]
[335208880,1723979460401,-500.0,0.0001726,2]
[335208881,1723979460417,-500.0,0.0001726,2]
[335208882,1723979460432,-607.24,0.0001726,2]
[335208883,1723979460449,-741.17,0.0001726,2]
[335208884,1723979460464,-973.79,0.0001726,2]
[335208885,1723979460478,-688.92,0.0001726,2]
[335208886,1723979460493,-500.0,0.0001726,2]
[335208887,1723979460511,-500.0,0.0001726,2]
[335208888,1723979460526,-718.41,0.0001726,2]
[335208889,1723979460541,-500.0,0.0001726,2]
[335208890,1723979460556,-500.0,0.0001726,2]
[335208891,1723979460572,-500.0,0.0001726,2]
[335208892,1723979460589,-648.55,0.0001726,2]
[335208893,1723979460604,-500.0,0.0001726,2]
[335208894,1723979460620,-500.0,0.0001726,2]
[335208895,1723979460636,-500.0,0.0001726,2]
[335208896,1723979460650,-500.0,0.0001726,2]
[335208897,1723979460665,-500.0,0.0001726,2]
[335208898,1723979460683,-502.50185713,0.0001726,2]
[335208899,1723979460697,-652.17,0.0001726,2]
[335208900,1723979460711,-500.0,0.0001726,2]
[335208901,1723979460728,-656.44,0.0001726,2]
[335208902,1723979460745,-500.0,0.0001726,2]
[335208903,1723979460760,-500.0,0.0001726,2]
[335208904,1723979460775,-500.0,0.0001726,2]
[335208905,1723979460791,-733.8,0.0001726,2]
[335208906,1723979460806,-500.0,0.0001726,2]
[335208907,1723979460822,-500.0,0.0001726,2]
[335208908,1723979460836,-607.05,0.0001726,2]
[335208909,1723979460851,-500.0,0.0001726,2]
[335208910,1723979460866,-500.0,0.0001726,2]
[335208911,1723979460880,-500.0,0.0001726,2]
[335208912,1723979460895,-500.0,0.0001726,2]
[335208913,1723979460909,-500.0,0.0001726,2]
[335208914,1723979460924,-500.74765746,0.0001726,2]
[335208915,1723979460939,-500.0,0.0001726,2]
[335208916,1723979460954,-500.0,0.0001726,2]
[335208917,1723979460969,-500.0,0.0001726,2]
[335208918,1723979460983,-805.33,0.0001726,2]
[335208919,1723979460998,-500.0,0.0001726,2]
[335208920,1723979461012,-500.0,0.0001726,2]
[335208921,1723979461028,-566.71,0.0001726,2]
[335208922,1723979461044,-502.76543295,0.0001726,2]
[335208923,1723979461057,-500.0,0.0001726,2]
[335208924,1723979461072,-493.19873065,0.0001726,2]
[335208925,1723979461087,-500.0,0.0001726,2]
[335208926,1723979461216,-500.0,0.0001726,2]
[335208927,1723979461226,-500.0,0.0001726,2]
[335208928,1723979461236,-500.0,0.0001726,2]
[335208929,1723979461245,-500.0,0.0001726,2]
[335208930,1723979461255,-500.0,0.0001726,2]
[335208931,1723979461266,-502.15532841,0.0001726,2]
[335208932,1723979461276,-500.0,0.0001726,2]
[335208933,1723979461285,-500.0,0.0001726,2]
[335208934,1723979461295,-500.0,0.0001726,2]
[335208935,1723979461303,-500.0,0.0001726,2]
[335208936,1723979461313,-500.0,0.0001726,2]
[335208937,1723979461322,-500.0,0.0001726,2]
[335208938,1723979461331,-500.0,0.0001726,2]
[335208939,1723979461342,-500.0,0.0001726,2]
[335208940,1723979461353,-460.37914527,0.0001726,2]
[335208941,1723979461363,-500.0,0.0001726,2]
[335208942,1723979461374,-500.0,0.0001726,2]
[335208943,1723979461384,-500.0,0.0001726,2]
[335208944,1723979461395,-1108.64,0.0001726,2]
[335208945,1723979461405,-500.0,0.0001726,2]
[335208946,1723979461416,-582.5,0.0001726,2]
[335208947,1723979461425,-934.91,0.0001726,2]
[335208948,1723979461435,-500.0,0.0001726,2]
[335208949,1723979461444,-500.0,0.0001726,2]
[335208950,1723979461454,-1000.0,0.0001726,2]
[335208951,1723979461463,-500.0,0.0001726,2]
[335208952,1723979461473,-500.0,0.0001726,2]
[335208953,1723979461482,-500.0,0.0001726,2]
[335208954,1723979461491,-500.0,0.0001726,2]
[335208955,1723979461504,-885.71,0.0001726,2]
[335208956,1723979461517,-500.0,0.0001726,2]
[335208957,1723979461527,-500.0,0.0001726,2]
[335208958,1723979461538,-500.0,0.0001726,2]
[335208959,1723979461550,-500.0,0.0001726,2]
[335208960,1723979461560,-500.0,0.0001726,2]
[335208961,1723979461570,-500.0,0.0001726,2]
[335208962,1723979461579,-505.1839245,0.0001726,2]
[335208963,1723979461589,-179.68681379,0.0001726,2]
[335208964,1723979461599,-709.34,0.0001726,2]
[335208965,1723979461608,-500.0,0.0001726,2]
[335208966,1723979461617,-500.0,0.0001726,2]
[335208967,1723979461626,-500.0,0.0001726,2]
[335208968,1723979461635,-500.0,0.0001726,2]
[335208969,1723979461644,-500.0,0.0001726,2]
[335208970,1723979461653,-1344.65,0.0001726,2]
[335208971,1723979461664,-500.0,0.0001726,2]
[335208972,1723979461673,-500.0,0.0001726,2]
[335208973,1723979461682,-500.0,0.0001726,2]
[335208974,1723979461692,-694.89,0.0001726,2]
[335208975,1723979461701,-500.0,0.0001726,2]
[335208976,1723979461710,-500.0,0.0001726,2]
[335208977,1723979461720,-936.29,0.0001726,2]
[335208978,1723979461729,-500.0,0.0001726,2]
[335208979,1723979461739,-1200.92,0.0001726,2]
[335208980,1723979461749,-621.07,0.0001726,2]
[335208981,1723979461759,-500.0,0.0001726,2]
[335208982,1723979461768,-500.0,0.0001726,2]
[335208983,1723979461778,-500.0,0.0001726,2]
[335208984,1723979461787,-1214.6,0.0001726,2]
[335208985,1723979461797,-1409.37,0.0001726,2]
[335208986,1723979461806,-500.0,0.0001726,2]
[335208987,1723979461815,-500.0,0.0001726,2]
[335208988,1723979461825,-666.89,0.0001726,2]
[335208989,1723979461834,-500.0,0.0001726,2]
[335208990,1723979461843,-500.0,0.0001726,2]
[335208991,1723979461852,-500.0,0.0001726,2]
[335208992,1723979461862,-500.0,0.0001726,2]
[335208993,1723979461871,-500.0,0.0001726,2]
[335208994,1723979461880,-500.0,0.0001726,2]
[335208995,1723979461890,-500.0,0.0001726,2]
[335208996,1723979461899,-1362.27,0.0001726,2]
[335208997,1723979461909,-1133.98,0.0001726,2]
[335208998,1723979461920,-506.21095604,0.0001726,2]
[335208999,1723979461930,-500.0,0.0001726,2]
[335209000,1723979461939,-4647.9,0.0001726,2]
[335209001,1723979461949,-603.56,0.0001726,2]
[335209002,1723979461959,-555.08,0.0001726,2]
[335209003,1723979461968,-500.0,0.0001726,2]
[335209004,1723979461978,-500.0,0.0001726,2]
[335209005,1723979461987,-1319.09,0.0001726,2]
[335209006,1723979461996,-500.0,0.0001726,2]
[335209007,1723979462006,-500.0,0.0001726,2]
[335209008,1723979462015,-500.0,0.0001726,2]
[335209009,1723979462026,-500.0,0.0001726,2]
[335209010,1723979462036,-500.0,0.0001726,2]
[335209011,1723979462045,-1176.95,0.0001726,2]
[335209012,1723979462055,-500.0,0.0001726,2]
[335209013,1723979462064,-500.0,0.0001726,2]
[335209014,1723979462074,-773.17,0.0001726,2]
[335209015,1723979462083,-500.0,0.0001726,2]
[335209016,1723979462092,-2171.88,0.0001726,2]
[335209017,1723979462102,-595.36,0.0001726,2]
[335209018,1723979462112,-500.0,0.0001726,2]
[335209019,1723979462124,-524.89954119,0.0001726,2]
[335209020,1723979462134,-931.18,0.0001726,2]
[335209021,1723979462143,-665.07,0.0001726,2]
[335209022,1723979462153,-1489.85,0.0001726,2]
[335209023,1723979462166,-500.0,0.0001726,2]
[335209024,1723979462175,-3211.23,0.0001726,2]
[335209025,1723979462184,-500.0,0.0001726,2]
[335209026,1723979462194,-500.0,0.0001726,2]
[335209027,1723979462203,-476.9657291,0.0001726,2]
[335209028,1723979462213,-500.0,0.0001726,2]
[335209029,1723979462222,-930.16,0.0001726,2]
[335209030,1723979462231,-1997.88,0.0001726,2]
[335209031,1723979462240,-917.17,0.0001726,2]
[335209032,1723979462250,-502.74047752,0.0001726,2]
[335209033,1723979462259,-500.0,0.0001726,2]
[335209034,1723979462268,-500.0,0.0001726,2]
[335209035,1723979462278,-500.0,0.0001726,2]
[335209036,1723979462287,-500.0,0.0001726,2]
[335209037,1723979462296,-625.70565956,0.0001726,2]
[335209038,1723979462305,-602.66,0.0001726,2]
[335209039,1723979462315,-500.0,0.0001726,2]
[335209040,1723979462324,-500.0,0.0001726,2]
[335209041,1723979462333,-500.0,0.0001726,2]
[335209042,1723979462343,-500.0,0.0001726,2]
[335209043,1723979462352,-1241.55,0.0001726,2]
[335209044,1723979462362,-643.82,0.0001726,2]
[335209045,1723979462373,-500.0,0.0001726,2]
[335209046,1723979462383,-607.78,0.0001726,2]
[335209047,1723979462393,-655.66,0.0001726,2]
[335209048,1723979462403,-7440.18,0.0001726,2]
[335209049,1723979462414,-321.84816398,0.0001726,2]
[335209050,1723979462424,-1029.95,0.0001726,2]
[335209051,1723979462434,-500.0,0.0001726,2]
[335209052,1723979462444,-500.0,0.0001726,2]
[335209053,1723979462455,-500.0,0.0001726,2]
[335209054,1723979462464,-1019.02,0.0001726,2]
[335209055,1723979462473,-500.0,0.0001726,2]
[335209056,1723979462483,-500.0,0.0001726,2]
[335209057,1723979462492,-1026.7,0.0001726,2]
[335209058,1723979462505,-1063.7,0.0001726,2]
[335209059,1723979462515,-500.0,0.0001726,2]
[335209060,1723979462525,-500.0,0.0001726,2]
[335209061,1723979462534,-500.0,0.0001726,2]
[335209062,1723979462545,-500.0,0.0001726,2]
[335209063,1723979462554,-579.89,0.0001726,2]
[335209064,1723979462563,-500.0,0.0001726,2]
[335209065,1723979462573,-706.05,0.0001726,2]
[335209066,1723979462583,-668.29,0.0001726,2]
[335209067,1723979462592,-1230.19,0.0001726,2]
[335209068,1723979462601,-501.50201965,0.0001726,2]
[335209069,1723979462609,-500.0,0.0001726,2]
[335209070,1723979462618,-500.0,0.0001726,2]
[335209071,1723979462627,-2221.95,0.0001726,2]
[335209072,1723979462637,-500.0,0.0001726,2]
[335209073,1723979462646,-500.0,0.0001726,2]
[335209074,1723979462655,-2766.47,0.0001726,2]
[335209075,1723979462665,-502.57367614,0.0001726,2]
[335209076,1723979462675,-888.46,0.0001726,2]
[335209077,1723979462683,-500.0,0.0001726,2]
[335209078,1723979462692,-500.0,0.0001726,2]
[335209079,1723979462702,-201.396666,0.0001726,2]
[335209080,1723979462711,-201.396666,0.0001726,2]
[335209081,1723979462721,-500.0,0.0001726,2]
[335209082,1723979462730,-837.87,0.0001726,2]
[335209083,1723979462740,-798.58,0.0001726,2]
[335209084,1723979462750,-504.1198036,0.0001726,2]
[335209085,1723979462759,-677.44,0.0001726,2]
[335209086,1723979462769,-699.53,0.0001726,2]
[335209087,1723979462778,-508.91305967,0.0001726,2]
[335209088,1723979462787,-500.0,0.0001726,2]
[335209089,1723979462797,-670.56,0.0001726,2]
[335209090,1723979462806,-500.0,0.0001726,2]
[335209091,1723979462903,-751.19,0.0001726,2]
[335209092,1723979462914,-500.0,0.0001726,2]
[335209093,1723979462924,-500.0,0.0001726,2]
[335209094,1723979462933,-502.13860294,0.0001726,2]
[335209095,1723979462942,-500.0,0.0001726,2]
[335209096,1723979462952,-500.0,0.0001726,2]
[335209097,1723979462961,-954.92,0.0001726,2]
[335209098,1723979462971,-500.0,0.0001726,2]
[335209099,1723979462980,-759.09,0.0001726,2]
[335209100,1723979462990,-500.0,0.0001726,2]
[335209101,1723979462999,-1068.78,0.0001726,2]
[335209102,1723979463009,-750.43,0.0001726,2]
[335209103,1723979463019,-1990.91,0.0001726,2]
[335209104,1723979463029,-880.39,0.0001726,2]
[335209105,1723979463038,-500.0,0.0001726,2]
[335209106,1723979463048,-500.0,0.0001726,2]
[335209107,1723979463057,-500.0,0.0001726,2]
[335209108,1723979463067,-854.51,0.0001726,2]
[335209109,1723979463077,-829.06,0.0001726,2]
[335209110,1723979463087,-500.0,0.0001726,2]
[335209111,1723979463096,-814.14,0.0001726,2]
[335209112,1723979463105,-500.0,0.0001726,2]
[335209113,1723979463115,-500.0,0.0001726,2]
[335209114,1723979463124,-757.9,0.0001726,2]
[335209115,1723979463134,-500.0,0.0001726,2]
[335209116,1723979463143,-500.0,0.0001726,2]
[335209117,1723979463153,-500.0,0.0001726,2]
[335209118,1723979463164,-500.0,0.0001726,2]
[335209119,1723979463173,-500.0,0.0001726,2]
[335209120,1723979463183,-500.0,0.0001726,2]
[335209121,1723979463193,-500.0,0.0001726,2]
[335209122,1723979463203,-500.0,0.0001726,2]
[335209123,1723979463213,-715.7,0.0001726,2]
[335209124,1723979463223,-200.0,0.00017273,2]
[335209125,1723979463233,-200.0,0.00017273,2]
[335209126,1723979463242,-155.1152318,0.00017273,2]
[335209127,1723979463251,-166.4,0.00017333,2]
[335209128,1723979463261,-27925.77711004,0.00017365,2]
[335209129,1723979463270,-242.9856,0.00017446,2]
[335209130,1723979463280,-150.01,0.00017533,2]
[335209131,1723979463290,-3246.18840817,0.00017533,2]
[335209132,1723979463299,-500.0,0.00017534,2]
[335209133,1723979463309,-500.0,0.00017534,2]
[335209134,1723979463318,-500.0,0.00017534,2]
[335209135,1723979463327,-500.0,0.00017534,2]
[335209136,1723979463336,-500.0,0.00017534,2]
[335209137,1723979463346,-500.0,0.00017534,2]
[335209138,1723979463355,-500.0,0.00017534,2]
[335209139,1723979463364,-500.0,0.00017534,2]
[335209140,1723979463373,-500.0,0.00017534,2]
[335209141,1723979463383,-500.0,0.00017534,2]
[335209142,1723979463393,-500.0,0.00017534,2]
[335209143,1723979463402,-500.0,0.00017534,2]
[335209144,1723979463412,-500.0,0.00017534,2]
[335209145,1723979463422,-500.0,0.00017534,2]
[335209146,1723979463432,-892.11,0.00017534,2]
[335209147,1723979463442,-500.0,0.00017534,2]
[335209148,1723979463451,-500.0,0.00017534,2]
[335209149,1723979463461,-561.51121656,0.00017534,2]
[335209150,1723979463470,-500.0,0.00017534,2]
[335209151,1723979463480,-790.36,0.00017534,2]
[335209152,1723979463490,-500.0,0.00017534,2]
[335209153,1723979463500,-500.0,0.00017534,2]
[335209154,1723979463513,-500.0,0.00017534,2]
[335209155,1723979463523,-571.35,0.00017534,2]
[335209156,1723979463533,-500.0,0.00017534,2]
[335209157,1723979463542,-500.0,0.00017534,2]
[335209158,1723979463553,-500.0,0.00017534,2]
[335209159,1723979463563,-500.0,0.00017534,2]
[335209160,1723979463573,-500.0,0.00017534,2]
[335209161,1723979463583,-500.0,0.00017534,2]
[335209162,1723979463593,-733.98,0.00017534,2]
[335209163,1723979463602,-500.0,0.00017534,2]
[335209164,1723979463612,-504.94520513,0.00017534,2]
[335209165,1723979463621,-500.0,0.00017534,2]
[335209166,1723979463631,-500.0,0.00017534,2]
[335209167,1723979463640,-529.81,0.00017534,2]
[335209168,1723979463650,-151.0,0.00017534,2]
[335209169,1723979463659,-500.0,0.00017534,2]
[335209170,1723979463670,-151.0,0.00017534,2]
[335209171,1723979463679,-500.0,0.00017534,2]
[335209172,1723979463688,-500.0,0.00017534,2]
[335209173,1723979463697,-719.11,0.00017534,2]
[335209174,1723979463706,-500.0,0.00017534,2]
[335209175,1723979463716,-500.0,0.00017534,2]
[335209176,1723979463725,-500.0,0.00017534,2]
[335209177,1723979463735,-662.22,0.00017534,2]
[335209178,1723979463745,-500.0,0.00017534,2]
[335209179,1723979463755,-500.0,0.00017534,2]
[335209180,1723979463764,-538.36,0.00017534,2]
[335209181,1723979463774,-994.27,0.00017534,2]
[335209182,1723979463783,-1007.76,0.00017534,2]
[335209183,1723979463793,-500.0,0.00017534,2]
[335209184,1723979463802,-500.0,0.00017534,2]
[335209185,1723979463811,-666.68,0.00017534,2]
[335209186,1723979463821,-513.97,0.00017534,2]
[335209187,1723979463831,-500.0,0.00017534,2]
[335209188,1723979463840,-667.83,0.00017534,2]
[335209189,1723979463850,-635.85141008,0.00017534,2]
[335209190,1723979463859,-500.0,0.00017534,2]
[335209191,1723979463869,-500.0,0.00017534,2]
[335209192,1723979463879,-500.0,0.00017534,2]
[335209193,1723979463888,-500.0,0.00017534,2]
[335209194,1723979463898,-515.51,0.00017534,2]
[335209195,1723979463908,-500.0,0.00017534,2]
[335209196,1723979463920,-500.0,0.00017534,2]
[335209197,1723979463934,-500.0,0.00017534,2]
[335209198,1723979463944,-500.0,0.00017534,2]
[335209199,1723979463954,-337.65358174,0.00017534,2]
[335209200,1723979463964,-500.0,0.00017534,2]
[335209201,1723979463975,-500.0,0.00017534,2]
[335209202,1723979463985,-699.21,0.00017534,2]
[335209203,1723979463995,-415.65681988,0.00017534,2]
[335209204,1723979464005,-500.0,0.00017534,2]
[335209205,1723979464014,-500.0,0.00017534,2]
[335209206,1723979464024,-500.0,0.00017534,2]
[335209207,1723979464034,-835.69,0.00017534,2]
[335209208,1723979464045,-681.64,0.00017534,2]
[335209209,1723979464056,-500.0,0.00017534,2]
[335209210,1723979464065,-667.86,0.00017534,2]
[335209211,1723979464075,-500.0,0.00017534,2]
[335209212,1723979464085,-500.0,0.00017534,2]
[335209213,1723979464095,-2005.0,0.00017534,10]
[335209214,1723979464105,-500.0,0.00017534,2]
[335209215,1723979464115,-500.0,0.00017534,2]
[335209216,1723979464125,-500.0,0.00017534,2]
[335209217,1723979464135,-200.0,0.00017534,2]
[335209218,1723979464145,-500.0,0.00017534,2]
[335209219,1723979464154,-500.0,0.00017534,2]
[335209220,1723979464164,-500.0,0.00017534,2]
[335209221,1723979464174,-500.0,0.00017534,2]
[335209222,1723979464183,-500.0,0.00017534,2]
[335209223,1723979464192,-697.49,0.00017534,2]
[335209224,1723979464201,-720.31,0.00017534,2]
[335209225,1723979464211,-570.82,0.00017534,2]
[335209226,1723979464220,-500.0,0.00017534,2]
[335209227,1723979464230,-277.50710305,0.00017534,2]
[335209228,1723979464241,-500.0,0.00017534,2]
[335209229,1723979464250,-756.2,0.00017534,2]
[335209230,1723979464260,-500.0,0.00017534,2]
[335209231,1723979464269,-1189.78,0.00017534,2]
[335209232,1723979464279,-500.0,0.00017534,2]
[335209233,1723979464289,-500.0,0.00017534,2]
[335209234,1723979464299,-1408.37,0.00017534,2]
[335209235,1723979464309,-500.0,0.00017534,2]
[335209236,1723979464319,-358.34557652,0.00017534,2]
[335209237,1723979464329,-620.88,0.00017534,2]
[335209238,1723979464338,-500.0,0.00017534,2]
[335209239,1723979464347,-500.0,0.00017534,2]
[335209240,1723979464357,-500.0,0.00017534,2]
[335209241,1723979464367,-500.0,0.00017534,2]
[335209242,1723979464377,-526.73,0.00017534,2]
[335209243,1723979464469,-500.0,0.00017534,2]
[335209244,1723979464480,-704.33,0.00017534,2]
[335209245,1723979464490,-500.0,0.00017534,2]
[335209246,1723979464500,-500.0,0.00017534,2]
[335209247,1723979464513,-607.24,0.00017534,2]
[335209248,1723979464523,-741.17,0.00017534,2]
[335209249,1723979464533,-973.79,0.00017534,2]
[335209250,1723979464542,-688.92,0.00017534,2]
[335209251,1723979464554,-500.0,0.00017534,2]
[335209252,1723979464563,-500.0,0.00017534,2]
[335209253,1723979464572,-718.41,0.00017534,2]
[335209254,1723979464581,-511.2007316,0.00017534,2]
[335209255,1723979464592,-500.0,0.00017534,2]
[335209256,1723979464602,-500.0,0.00017534,2]
[335209257,1723979464611,-648.55,0.00017534,2]
[335209258,1723979464622,-500.0,0.00017534,2]
[335209259,1723979464631,-500.0,0.00017534,2]
[335209260,1723979464640,-500.0,0.00017534,2]
[335209261,1723979464650,-500.0,0.00017534,2]
[335209262,1723979464659,-652.17,0.00017534,2]
[335209263,1723979464670,-500.0,0.00017534,2]
[335209264,1723979464680,-571.66418889,0.00017534,2]
[335209265,1723979464988,-14.08586321,0.00017534,2]
[335209266,1723979465865,-70.6899479,0.00017534,2]
[335209267,1723979465875,-500.0,0.00017534,2]
[335209268,1723979465885,-500.0,0.00017534,2]
[335209269,1723979465894,-500.0,0.00017534,2]
[335209270,1723979465903,-733.8,0.00017534,2]
[335209271,1723979465913,-500.0,0.00017534,2]
[335209272,1723979465923,-500.0,0.00017534,2]
[335209273,1723979465932,-607.05,0.00017534,2]